bitfinex/quotes_SOLUSD_20250617
["timestamp","ask_amount","ask_price","bid_price","bid_amount"]
[1750128329886,0.28432314,151.6,151.56,12.61836916]
[1750128330097,33.64,151.63,151.59,6.02033161]
[1750128330389,6.30465475,151.62,151.57,6.02033161]
[1750128330591,1.5355,151.65,151.6,26.0]
[1750128330768,6.1,151.64,151.61,6.02033161]
[1750128331154,6.1,151.64,151.6,26.0]
[1750128331155,6.1,151.67,151.63,32.02033161]
[1750128331362,6.1,151.67,151.66,32.02033161]
[1750128331563,6.1,151.7,151.66,38.61402803]
[1750128331888,6.1,151.7,151.67,6.02033161]
[1750128332180,0.14216157,151.74,151.66,32.59369642]
[1750128332181,6.1,151.76,151.72,26.0]
[1750128332482,6.16511978,151.81,151.75,6.02033161]
[1750128332483,12.68729608,151.81,151.75,6.02033161]
[1750128332686,6.02033161,151.8,151.75,6.02033161]
[1750128332864,18.933972,151.79,151.75,6.02033161]
[1750128333189,6.02033161,151.8,151.75,6.02033161]
[1750128333377,6.02033161,151.79,151.75,6.02033161]
[1750128333577,6.02033161,151.79,151.76,26.0]
[1750128334660,6.02033161,151.79,151.74,6.59004908]
[1750128334661,24.66998047,151.77,151.67,22.65470872]
[1750128334882,6.02033161,151.77,151.72,32.02033161]
[1750128335085,33.50033161,151.77,151.72,32.02033161]
[1750128336083,6.02033161,151.76,151.72,6.02033161]
[1750128336289,6.02033161,151.76,151.72,26.0]
[1750128336688,6.02033161,151.75,151.72,26.0]
[1750128336993,18.933972,151.76,151.72,26.0]
[1750128337309,24.95430361,151.76,151.72,26.0]
[1750128337871,6.02033161,151.75,151.71,6.02033161]
[1750128338084,18.933972,151.76,151.72,6.02033161]
[1750128338295,27.48,151.77,151.73,6.02033161]
[1750128338681,33.50033161,151.77,151.73,6.02033161]
[1750128338870,33.50033161,151.77,151.71,32.5914307]
[1750128338871,24.66998047,151.76,151.72,6.02033161]
[1750128339699,6.02033161,151.75,151.71,32.02033161]
[1750128339889,6.02033161,151.73,151.67,6.59326168]
[1750128340072,6.02033161,151.71,151.66,6.02033161]
[1750128340473,6.02033161,151.71,151.67,6.02033161]
[1750128340980,6.02033161,151.71,151.66,32.02033161]
[1750128341591,6.02033161,151.71,151.67,6.02033161]
[1750128342175,33.48033161,151.72,151.67,6.02033161]
[1750128343586,33.48033161,151.72,151.67,12.6133932]
[1750128344879,24.95430361,151.71,151.66,32.02033161]
[1750128345188,6.02033161,151.68,151.66,26.0]
[1750128346581,6.02033161,151.69,151.66,26.0]
[1750128346801,6.5893516,151.76,151.66,32.59339377]
[1750128347002,6.02033161,151.72,151.68,6.02033161]
[1750128347508,6.02033161,151.72,151.66,6.59339377]
[1750128347509,58.22998047,151.75,151.71,26.0]
[1750128347716,0.28432314,151.74,151.71,26.0]
[1750128348381,6.1,151.75,151.71,6.02033161]
[1750128348586,33.56,151.75,151.71,38.61176579]
[1750128349216,6.1,151.75,151.71,38.61176579]
[1750128349587,24.66998047,151.79,151.74,32.02033161]
[1750128349907,6.30465475,151.78,151.74,26.0]
[1750128350112,6.30465475,151.78,151.74,32.02033161]
[1750128350490,18.64964886,151.79,151.73,26.0]
[1750128350691,24.66998047,151.79,151.75,6.02033161]
[1750128350899,24.66998047,151.79,151.74,6.02033161]
[1750128351108,52.12998047,151.79,151.74,6.02033161]
[1750128352411,58.71812936,151.79,151.74,6.02033161]
[1750128353014,6.02033161,151.77,151.73,26.0]
[1750128354021,24.95430361,151.76,151.67,16.48239484]
[1750128354212,52.39430361,151.76,151.71,6.02033161]
[1750128355118,52.39430361,151.76,151.7,26.0]
[1750128355119,12.61011744,151.75,151.7,32.02033161]
[1750128355687,6.02033161,151.74,151.7,26.0]
[1750128355892,18.933972,151.74,151.7,26.0]
[1750128356115,24.95430361,151.74,151.7,32.02033161]
[1750128357514,31.5445424,151.74,151.71,26.0]
[1750128358213,18.933972,151.71,151.64,6.02033161]
[1750128358401,6.02033161,151.69,151.66,26.0]
[1750128358925,33.46033161,151.7,151.67,26.0]
[1750128359298,33.46033161,151.7,151.66,6.02033161]
[1750128360219,6.02033161,151.69,151.67,26.0]
[1750128360935,6.02033161,151.69,151.65,32.02033161]
[1750128364093,6.02033161,151.69,151.65,26.0]
[1750128364298,6.02033161,151.69,151.65,32.02033161]
[1750128364923,12.61272444,151.69,151.65,26.0]
[1750128366022,6.02033161,151.69,151.65,26.0]
[1750128366444,6.02033161,151.69,151.65,32.02033161]
[1750128366941,12.61283924,151.69,151.65,26.0]
[1750128367633,6.30465475,151.68,151.65,26.0]
[1750128368335,12.89751278,151.68,151.65,26.0]
[1750128368928,6.02033161,151.67,151.59,16.49099974]
[1750128369232,6.02033161,151.67,151.58,7.8727]
[1750128369233,6.30465475,151.65,151.62,26.0]
[1750128369435,6.30465475,151.65,151.61,6.02033161]
[1750128369612,0.28432314,151.65,151.62,26.0]
[1750128370716,0.28432314,151.65,151.63,26.0]
[1750128371033,0.28432314,151.65,151.62,26.0]
[1750128371450,6.30465475,151.65,151.62,26.0]
[1750128371958,12.89887224,151.65,151.6,6.59630606]
[1750128372136,0.28432314,151.63,151.6,6.02033161]
[1750128372513,0.28432314,151.63,151.6,32.02033161]
[1750128372719,0.28432314,151.63,151.6,26.0]
[1750128372720,6.8793569,151.63,151.6,26.0]
[1750128372921,0.28432314,151.63,151.6,32.02033161]
[1750128375233,12.89975289,151.63,151.6,26.0]
[1750128375836,12.89975289,151.63,151.54,7.6093]
[1750128375837,0.28432314,151.61,151.54,7.6093]
[1750128376040,33.72465475,151.61,151.57,6.02033161]
[1750128376222,27.70432314,151.61,151.59,6.02033161]
[1750128376541,27.70432314,151.61,151.55,6.59848234]
[1750128376542,27.70432314,151.61,151.58,32.02033161]
[1750128377745,0.28432314,151.61,151.59,6.02033161]
[1750128380845,0.28432314,151.61,151.58,26.0]
[1750128381053,0.28432314,151.61,151.58,32.02033161]
[1750128383545,6.88019681,151.61,151.58,6.02033161]
[1750128384242,6.88019681,151.61,151.57,32.02033161]
[1750128384243,12.90052842,151.61,151.57,32.02033161]
[1750128384626,12.90052842,151.61,151.57,6.02033161]
[1750128385750,12.90052842,151.61,151.57,26.0]
[1750128386050,0.28432314,151.59,151.54,1.5492]
[1750128386260,6.30465475,151.57,151.53,6.02033161]
[1750128386470,0.28432314,151.57,151.54,6.02033161]
[1750128389238,6.02033161,151.56,151.53,26.0]
[1750128389648,24.95430361,151.55,151.51,6.02033161]
[1750128390137,24.95430361,151.55,151.49,6.60098709]
[1750128390341,24.95430361,151.55,151.5,6.02033161]
[1750128390545,24.95430361,151.55,151.5,32.02033161]
[1750128390737,6.02033161,151.54,151.47,6.60196738]
[1750128390943,6.30465475,151.53,151.49,6.02033161]
[1750128391147,6.30465475,151.53,151.49,32.02033161]
[1750128391332,6.30465475,151.53,151.49,6.02033161]
[1750128393434,6.30465475,151.53,151.49,12.62135544]
[1750128393435,18.933972,151.53,151.49,12.62135544]
[1750128393635,0.28432314,151.53,151.51,6.02033161]
[1750128394637,0.28432314,151.53,151.5,6.02033161]
[1750128396849,18.933972,151.53,151.49,12.62135544]
[1750128397359,18.933972,151.53,151.49,6.02033161]
[1750128397556,24.95430361,151.53,151.49,6.02033161]
[1750128397752,6.02033161,151.5,151.42,8.2231]
[1750128397953,6.02033161,151.49,151.45,6.02033161]
[1750128398164,0.28432314,151.48,151.45,6.02033161]
[1750128398539,0.28432314,151.48,151.45,32.02033161]
[1750128398739,6.30465475,151.48,151.43,6.02033161]
[1750128398944,0.28432314,151.46,151.43,6.02033161]
[1750128399156,33.70465475,151.46,151.39,6.6054561]
[1750128399461,33.70465475,151.46,151.41,32.02033161]
[1750128399764,6.06,151.45,151.41,12.62478512]
[1750128399967,6.06,151.45,151.42,6.02033161]
[1750128400641,6.06,151.45,151.41,12.62478512]
[1750128400857,6.06,151.45,151.41,38.62478512]
[1750128401166,6.06,151.45,151.41,38.62488523]
[1750128401167,12.08033161,151.45,151.41,38.62488523]
[1750128402347,0.28432314,151.44,151.41,6.02033161]
[1750128402747,0.28432314,151.44,151.4,38.62520467]
[1750128402944,24.95430361,151.44,151.4,6.02033161]
[1750128403147,0.28432314,151.42,151.39,6.02033161]
[1750128403549,24.95430361,151.42,151.38,6.02033161]
[1750128404063,24.95430361,151.42,151.39,26.0]
[1750128404870,18.933972,151.42,151.38,6.02033161]
[1750128405171,18.933972,151.42,151.39,6.02033161]
[1750128410784,18.933972,151.42,151.39,12.62570687]
[1750128411679,18.933972,151.42,151.39,6.02033161]
[1750128412880,0.28432314,151.42,151.4,6.02033161]
[1750128413086,18.933972,151.43,151.4,6.02033161]
[1750128413378,46.353972,151.43,151.4,6.02033161]
[1750128413771,58.97806455,151.43,151.39,6.02033161]
[1750128413974,52.37430361,151.43,151.39,6.02033161]
[1750128415099,0.28432314,151.41,151.38,6.02033161]
[1750128415256,24.95430361,151.41,151.37,32.02033161]
[1750128415456,27.4,151.4,151.37,32.02033161]
[1750128415973,0.28432314,151.39,151.36,6.02033161]
[1750128416178,0.28432314,151.39,151.36,12.62703783]
[1750128416486,18.933972,151.39,151.36,32.02033161]
[1750128417076,24.95430361,151.39,151.35,6.02033161]
[1750128417266,24.95430361,151.39,151.35,12.62742376]
[1750128417461,24.95430361,151.39,151.35,38.62742376]
[1750128417863,6.06,151.38,151.35,38.62742376]
[1750128418062,6.06,151.38,151.35,32.02033161]
[1750128418361,6.06,151.38,151.34,6.60751527]
[1750128418673,0.28432314,151.37,151.34,6.02033161]
[1750128418883,6.06,151.38,151.36,32.02033161]
[1750128419086,6.06,151.38,151.37,6.02033161]
[1750128419981,6.06,151.38,151.36,26.0]
[1750128419982,6.06,151.38,151.36,32.02033161]
[1750128420186,6.06,151.38,151.34,6.60749423]
[1750128420494,6.02033161,151.35,151.3,7.67131865]
[1750128420691,0.28432314,151.3,151.25,6.61113545]
[1750128420881,0.28432314,151.3,151.26,32.02033161]
[1750128421191,6.02033161,151.29,151.25,6.61113545]
[1750128421378,6.02033161,151.29,151.24,6.02033161]
[1750128421576,0.28432314,151.26,151.23,6.02033161]
[1750128421992,0.28432314,151.26,151.23,32.02033161]
[1750128422167,0.28432314,151.26,151.22,6.61285674]
[1750128422168,0.28432314,151.26,151.22,12.63318835]
[1750128422374,6.30465475,151.26,151.22,12.63312332]
[1750128422568,0.28432314,151.24,151.18,6.1104]
[1750128422872,12.34465475,151.24,151.2,6.02033161]
[1750128423189,12.34465475,151.24,151.14,6.1104]
[1750128423190,18.64964886,151.23,151.18,6.02033161]
[1750128423391,27.4,151.22,151.21,6.02033161]
[1750128423594,27.4,151.22,151.16,26.0]
[1750128423895,27.4,151.22,151.21,6.02033161]
[1750128424282,27.4,151.22,151.2,6.02033161]
[1750128425001,27.4,151.22,151.21,6.02033161]
[1750128425189,27.4,151.22,151.21,12.63365083]
[1750128425393,6.04,151.24,151.21,12.63365083]
[1750128425596,6.04,151.24,151.2,6.61371239]
[1750128425801,6.04,151.24,151.21,6.02033161]
[1750128426107,0.28432314,151.23,151.2,32.02033161]
[1750128426473,0.28432314,151.23,151.21,6.02033161]
[1750128427097,0.28432314,151.23,151.2,26.0]
[1750128427303,0.28432314,151.23,151.21,6.02033161]
[1750128428203,0.28432314,151.23,151.2,32.02033161]
[1750128429010,0.28432314,151.23,151.21,6.02033161]
[1750128429504,0.28432314,151.23,151.2,26.0]
[1750128429711,0.28432314,151.23,151.2,32.02033161]
[1750128430305,0.28432314,151.23,151.2,26.0]
[1750128430503,0.28432314,151.23,151.2,32.02033161]
[1750128431796,0.28432314,151.23,151.2,26.0]
[1750128431989,0.28432314,151.23,151.2,32.02033161]
[1750128432886,24.95430361,151.23,151.2,26.0]
[1750128433290,24.95430361,151.23,151.19,6.02033161]
[1750128433821,6.02033161,151.22,151.16,6.61550674]
[1750128434022,6.02033161,151.22,151.12,24.66998047]
[1750128434023,6.02033161,151.18,151.12,18.64964886]
[1750128434188,0.14216157,151.22,151.15,6.02033161]
[1750128434520,6.02033161,151.21,151.17,6.02033161]
[1750128434684,6.02033161,151.18,151.13,6.61672939]
[1750128434883,6.02033161,151.17,151.13,12.637061]
[1750128435086,6.02033161,151.17,151.15,26.0]
[1750128435289,6.18216157,151.17,151.15,26.0]
[1750128435512,6.04,151.17,151.15,38.63615888]
[1750128435691,0.14216157,151.19,151.15,38.63615888]
[1750128435692,6.04,151.22,151.16,6.02033161]
[1750128435901,0.14216157,151.21,151.19,6.02033161]
[1750128436209,0.14216157,151.21,151.18,6.02033161]
[1750128436444,0.28432314,151.21,151.18,6.02033161]
[1750128436592,0.28432314,151.21,151.19,6.02033161]
[1750128436985,0.28432314,151.21,151.18,6.02033161]
[1750128437408,0.28432314,151.21,151.15,32.61582727]
[1750128437592,18.933972,151.21,151.18,6.02033161]
[1750128438111,18.933972,151.21,151.2,6.02033161]
[1750128438112,0.28432314,151.21,151.2,6.02033161]
[1750128438307,0.28432314,151.21,151.19,6.02033161]
[1750128439389,0.28432314,151.21,151.19,12.63450669]
[1750128440901,0.28432314,151.21,151.19,6.02033161]
[1750128442543,0.28432314,151.21,151.18,6.02033161]
[1750128442843,0.28432314,151.21,151.19,6.02033161]
[1750128443616,0.28432314,151.21,151.19,12.63448499]
[1750128443948,0.28432314,151.21,151.19,6.02033161]
[1750128445210,33.46,151.22,151.2,6.02033161]
[1750128445528,6.04,151.22,151.21,6.02033161]
[1750128447334,6.04,151.22,151.21,12.63365083]
[1750128448407,6.04,151.22,151.21,6.02033161]
[1750128449001,6.04,151.22,151.21,12.63365083]
[1750128452105,6.04,151.22,151.21,38.63365083]
[1750128452829,27.42,151.27,151.21,38.63365083]
[1750128453032,6.04,151.27,151.25,6.02033161]
[1750128453330,6.04,151.27,151.26,6.02033161]
[1750128455130,6.04,151.27,151.26,12.63146475]
[1750128456205,27.42,151.31,151.26,12.63146475]
[1750128456505,27.42,151.31,151.3,6.02033161]
[1750128456710,58.42,151.32,151.3,6.02033161]
[1750128456926,58.42,151.32,151.26,23.13896601]
[1750128456927,58.42,151.32,151.31,6.02033161]
[1750128457132,58.42,151.32,151.29,32.60945628]
[1750128457133,58.42,151.32,151.3,6.02033161]
[1750128458827,24.95430361,151.31,151.23,24.57562355]
[1750128459038,27.4,151.3,151.27,6.02033161]
[1750128460624,27.4,151.3,151.28,6.02033161]
[1750128461319,27.4,151.3,151.29,6.02033161]
[1750128461635,27.4,151.31,151.29,6.02033161]
[1750128461836,85.82,151.32,151.3,6.02033161]
[1750128462414,58.42,151.32,151.3,6.02033161]
[1750128462619,85.82,151.32,151.3,6.02033161]
[1750128462918,58.42,151.32,151.3,12.62966703]
[1750128463444,58.42,151.32,151.31,6.02033161]
[1750128463445,6.04,151.32,151.31,6.02033161]
[1750128464139,41.0810278,151.37,151.31,32.02033161]
[1750128464319,41.0810278,151.37,151.34,6.02033161]
[1750128465549,13.6810278,151.37,151.34,6.02033161]
[1750128465726,27.4,151.36,151.34,6.02033161]
[1750128467941,27.4,151.36,151.32,12.6287354]
[1750128468121,33.42033161,151.36,151.31,38.62927814]
[1750128468529,33.42033161,151.36,151.32,6.02033161]
[1750128468718,27.38,151.35,151.32,6.02033161]
[1750128468922,27.38,151.35,151.33,6.02033161]
[1750128471747,27.38,151.35,151.34,6.02033161]
[1750128472653,27.38,151.36,151.34,6.02033161]
[1750128474119,27.38,151.36,151.33,12.62831579]
[1750128476453,27.38,151.36,151.34,6.02033161]
[1750128477531,27.38,151.36,151.31,26.0]
[1750128477532,27.38,151.36,151.32,6.60836018]
[1750128477740,33.40033161,151.36,151.32,12.62869179]
[1750128479050,27.38,151.36,151.33,6.02033161]
[1750128479657,27.38,151.36,151.32,6.60836018]
[1750128479858,27.38,151.36,151.33,6.02033161]
[1750128480958,33.40033161,151.36,151.32,6.02033161]
[1750128481373,27.38,151.36,151.31,32.60883575]
[1750128481554,27.38,151.36,151.34,6.02033161]
[1750128481865,27.38,151.36,151.31,32.60875797]
[1750128481866,6.02033161,151.35,151.31,32.60875797]
[1750128482157,6.02033161,151.35,151.31,38.62908958]
[1750128482362,33.40033161,151.36,151.32,6.02033161]
[1750128483151,40.00721775,151.36,151.32,6.02033161]
[1750128484262,33.40033161,151.36,151.32,6.02033161]
[1750128484874,6.02,151.37,151.33,6.02033161]
[1750128485070,27.36,151.36,151.35,6.02033161]
[1750128486245,27.36,151.36,151.32,6.60842808]
[1750128486246,27.36,151.36,151.34,6.02033161]
[1750128486767,6.02,151.37,151.34,6.02033161]
[1750128486957,33.38,151.37,151.34,6.02033161]
[1750128488966,33.38,151.37,151.31,26.0]
[1750128488967,6.02033161,151.35,151.31,32.02033161]
[1750128489271,27.36,151.35,151.33,6.02033161]
[1750128490049,27.36,151.35,151.34,6.02033161]
[1750128490277,6.02,151.37,151.34,6.02033161]
[1750128490584,33.38,151.37,151.34,6.02033161]
[1750128490753,33.38,151.37,151.33,6.02033161]
[1750128490946,33.38,151.37,151.34,6.02033161]
[1750128491147,39.98638357,151.37,151.34,6.02033161]
[1750128491478,12.62638357,151.37,151.33,6.02033161]
[1750128491658,27.36,151.36,151.33,6.02033161]
[1750128492170,18.933972,151.37,151.34,6.02033161]
[1750128492372,6.02,151.37,151.36,6.02033161]
[1750128492579,33.38,151.37,151.36,6.02033161]
[1750128492878,33.38,151.37,151.35,6.02033161]
[1750128494974,6.02,151.37,151.36,6.02033161]
[1750128496378,6.02,151.37,151.36,12.62709693]
[1750128496578,6.02,151.42,151.37,26.0]
[1750128496785,6.02,151.42,151.41,6.02033161]
[1750128497462,33.38,151.47,151.41,6.02033161]
[1750128497668,33.38,151.47,151.38,1.76176157]
[1750128497669,33.38,151.47,151.46,6.02033161]
[1750128498063,6.02,151.47,151.46,6.02033161]
[1750128498959,6.02,151.47,151.45,6.02033161]
[1750128504180,6.02,151.47,151.46,6.02033161]
[1750128505111,6.02,151.47,151.46,12.62273488]
[1750128507570,6.02,151.47,151.46,6.02033161]
[1750128508073,6.02,151.47,151.43,6.02033161]
[1750128508074,12.04033161,151.47,151.43,6.02033161]
[1750128508277,6.02,151.47,151.43,6.02033161]
[1750128508582,6.02,151.47,151.45,6.02033161]
[1750128509178,6.02,151.47,151.46,6.02033161]
[1750128510464,6.02,151.47,151.46,12.62273488]
[1750128510996,6.02,151.47,151.44,32.60297962]
[1750128511161,6.02,151.47,151.46,6.02033161]
[1750128512585,6.02,151.47,151.46,12.62273488]
[1750128513283,6.02,151.47,151.45,6.6027039]
[1750128513594,6.02,151.47,151.46,6.02033161]
[1750128513797,39.94217502,151.47,151.41,6.2652]
[1750128514007,45.96250663,151.47,151.43,6.02033161]
[1750128514373,39.94217502,151.47,151.43,6.02033161]
[1750128514675,45.96250663,151.47,151.42,26.0]
[1750128514886,39.94217502,151.47,151.42,32.02033161]
[1750128515068,45.96250663,151.47,151.43,6.02033161]
[1750128516982,31.55678724,151.46,151.42,6.02033161]
[1750128517406,18.933972,151.46,151.41,32.60454191]
[1750128517615,31.55680324,151.46,151.42,6.02033161]
[1750128518121,6.30465475,151.44,151.4,6.02033161]
[1750128518329,33.62465475,151.44,151.39,38.62566618]
[1750128518489,33.62465475,151.44,151.4,6.02033161]
[1750128519585,33.62465475,151.44,151.39,6.02033161]
[1750128519586,24.66998047,151.43,151.39,6.02033161]
[1750128519791,24.66998047,151.43,151.38,12.62610638]
[1750128520112,24.66998047,151.43,151.38,38.62610638]
[1750128520296,18.64964886,151.43,151.4,6.02033161]
[1750128521115,27.32,151.45,151.42,6.02033161]
[1750128521329,27.32,151.45,151.43,6.02033161]
[1750128521693,18.64964886,151.46,151.43,6.02033161]
[1750128521894,27.32,151.46,151.43,6.02033161]
[1750128523018,24.95430361,151.45,151.41,32.02033161]
[1750128523226,24.95430361,151.45,151.41,6.02033161]
[1750128523412,6.02033161,151.44,151.4,6.02033161]
[1750128523731,24.95430361,151.45,151.41,6.02033161]
[1750128524302,31.55725595,151.45,151.41,6.02033161]
[1750128524724,6.02033161,151.44,151.39,38.62571037]
[1750128524917,6.02033161,151.44,151.4,6.02033161]
[1750128525132,27.32,151.43,151.4,6.02033161]
[1750128527296,27.32,151.43,151.41,6.02033161]
[1750128528908,33.92372688,151.43,151.4,26.0]
[1750128529210,33.92372688,151.43,151.41,6.02033161]
[1750128530210,27.32,151.43,151.41,6.02033161]
[1750128530437,33.92374303,151.43,151.41,6.02033161]
[1750128531832,33.92374303,151.43,151.42,6.02033161]
[1750128532837,24.17249102,151.47,151.42,6.02033161]
[1750128532838,24.66998047,151.47,151.42,6.02033161]
[1750128533134,18.933972,151.45,151.42,6.02033161]
[1750128533810,33.90327522,151.44,151.41,6.02033161]
[1750128535112,33.90327522,151.44,151.4,26.0]
[1750128535315,33.90327522,151.44,151.41,6.02033161]
[1750128536626,39.92360683,151.44,151.39,26.0]
[1750128536930,33.90327522,151.44,151.41,6.02033161]
[1750128538237,39.92360683,151.44,151.4,6.02033161]
[1750128539928,18.933972,151.43,151.4,6.02033161]
[1750128540539,45.04042121,151.48,151.39,26.0]
[1750128540540,29.07231311,151.5,151.42,6.02033161]
[1750128540833,18.64964886,151.47,151.42,26.0]
[1750128541036,18.64964886,151.47,151.45,6.02033161]
[1750128541241,45.94964886,151.47,151.45,6.02033161]
[1750128541565,52.55204163,151.47,151.45,6.02033161]
[1750128542025,52.55204163,151.47,151.44,6.02033161]
[1750128544717,52.55204163,151.47,151.38,16.5146516]
[1750128544718,6.02033161,151.45,151.35,24.84215824]
[1750128544938,6.02033161,151.44,151.36,6.60676532]
[1750128545238,33.32033161,151.43,151.39,6.02033161]
[1750128545447,33.32033161,151.43,151.39,32.02033161]
[1750128545642,27.3,151.43,151.4,6.02033161]
[1750128546142,33.32033161,151.43,151.39,32.02033161]
[1750128546941,6.6041474,151.42,151.39,32.02033161]
[1750128547121,33.90384746,151.43,151.4,6.02033161]
[1750128547535,33.90384746,151.43,151.41,6.02033161]
[1750128547840,22.5047565,151.48,151.42,32.02033161]
[1750128548039,52.55161624,151.47,151.45,6.02033161]
[1750128548718,52.55161624,151.47,151.44,6.02033161]
[1750128549217,52.55161624,151.47,151.42,26.0]
[1750128549429,52.55161624,151.47,151.43,6.02033161]
[1750128550143,52.55161624,151.47,151.44,6.02033161]
[1750128551448,25.25161624,151.47,151.44,6.02033161]
[1750128551620,57.48511032,151.47,151.44,6.02033161]
[1750128551820,52.55161624,151.47,151.44,6.02033161]
[1750128552246,52.55161624,151.47,151.43,6.02033161]
[1750128553824,58.57194785,151.47,151.43,6.02033161]
[1750128554046,58.57194785,151.47,151.42,32.02033161]
[1750128554047,4.93519301,151.46,151.42,32.02033161]
[1750128554248,58.57194785,151.47,151.43,6.02033161]
[1750128554430,31.27194785,151.47,151.43,6.02033161]
[1750128554633,27.3,151.46,151.43,6.02033161]
[1750128555355,27.3,151.46,151.44,6.02033161]
[1750128556648,32.23861791,151.46,151.44,6.02033161]
[1750128556850,32.23861791,151.46,151.42,32.60413673]
[1750128556851,38.84106688,151.46,151.43,6.02033161]
[1750128557153,32.23861791,151.46,151.43,6.02033161]
[1750128557357,32.23861791,151.46,151.44,6.02033161]
[1750128557539,27.3,151.46,151.44,6.02033161]
[1750128558150,33.90241936,151.46,151.43,6.02033161]
[1750128558341,4.9375044,151.45,151.43,6.02033161]
[1750128558544,27.3,151.46,151.43,6.02033161]
[1750128558850,31.27208662,151.47,151.43,6.02033161]
[1750128559151,32.22034289,151.46,151.43,6.02033161]
[1750128559347,27.28,151.46,151.43,6.02033161]
[1750128560249,27.28,151.46,151.44,6.02033161]
[1750128560566,5.98,151.47,151.45,32.02033161]
[1750128560728,50.87128027,151.5,151.46,6.02033161]
[1750128560928,4.94163141,151.49,151.48,6.02033161]
[1750128561329,45.92964886,151.5,151.48,6.02033161]
[1750128562455,27.28,151.5,151.48,6.02033161]
[1750128562953,5.98,151.51,151.49,6.02033161]
[1750128563135,39.28033161,151.51,151.47,6.02033161]
[1750128563335,44.2177988,151.51,151.47,6.02033161]
[1750128563641,38.19746719,151.51,151.48,6.02033161]
[1750128564150,44.79664253,151.51,151.48,6.02033161]
[1750128564949,4.93635256,151.5,151.48,6.02033161]
[1750128565451,4.93635256,151.5,151.46,6.02033161]
[1750128565647,27.28,151.49,151.46,6.02033161]
[1750128565853,27.28,151.49,151.47,6.02033161]
[1750128568355,27.28,151.49,151.48,6.02033161]
[1750128568555,38.1919528,151.51,151.48,6.02033161]
[1750128569359,33.26,151.51,151.48,6.02033161]
[1750128569767,38.19189948,151.51,151.48,6.02033161]
[1750128569934,33.26,151.51,151.48,6.02033161]
[1750128570366,5.98,151.51,151.48,6.02033161]
[1750128570563,33.26,151.51,151.48,6.02033161]
[1750128570861,44.79219888,151.51,151.48,6.02033161]
[1750128571858,39.86037024,151.51,151.48,6.02033161]
[1750128572163,33.26,151.51,151.48,6.02033161]
[1750128572347,38.19181726,151.51,151.48,6.02033161]
[1750128573165,39.86026192,151.51,151.48,6.02033161]
[1750128574158,38.19173564,151.51,151.48,6.02033161]
[1750128575236,38.19173564,151.51,151.49,6.02033161]
[1750128575435,33.26,151.51,151.49,6.02033161]
[1750128577467,5.98,151.51,151.49,6.02033161]
[1750128580248,5.98,151.51,151.48,6.02033161]
[1750128582350,5.98,151.51,151.49,6.02033161]
[1750128584776,5.98,151.51,151.48,6.02033161]
[1750128585274,12.58037104,151.51,151.48,6.02033161]
[1750128585462,12.58037104,151.51,151.45,26.0]
[1750128585769,12.58037104,151.51,151.46,6.02033161]
[1750128585770,52.21430361,151.5,151.46,6.02033161]
[1750128585943,46.193972,151.5,151.46,6.02033161]
[1750128587354,46.193972,151.5,151.47,6.02033161]
[1750128588452,27.26,151.5,151.49,6.02033161]
[1750128588648,27.26,151.5,151.48,6.02033161]
[1750128589470,39.88115475,151.5,151.45,32.02033161]
[1750128589650,24.95430361,151.49,151.45,32.02033161]
[1750128589852,31.55546737,151.49,151.45,32.02033161]
[1750128590266,27.26,151.5,151.47,6.02033161]
[1750128591254,32.18994364,151.5,151.47,6.02033161]
[1750128591456,27.26,151.5,151.47,6.02033161]
[1750128591851,33.86067893,151.5,151.47,6.02033161]
[1750128592248,38.79143531,151.5,151.47,6.02033161]
[1750128592761,38.79143531,151.5,151.46,6.02033161]
[1750128593080,33.86067893,151.5,151.46,6.02033161]
[1750128598173,38.79266729,151.5,151.46,6.02033161]
[1750128598660,38.79266729,151.5,151.47,6.02033161]
[1750128599188,27.26,151.5,151.48,6.02033161]
[1750128600091,27.26,151.5,151.47,6.02033161]
[1750128600290,33.86067025,151.5,151.47,6.02033161]
[1750128600480,33.86067025,151.5,151.46,6.02033161]
[1750128600481,44.81351005,151.5,151.46,6.02033161]
[1750128601183,39.88100186,151.5,151.46,6.02033161]
[1750128601384,38.79242777,151.5,151.46,6.02033161]
[1750128601703,32.19175752,151.5,151.47,6.02033161]
[1750128602192,38.7924249,151.5,151.47,6.02033161]
[1750128602368,33.86066738,151.5,151.47,6.02033161]
[1750128602568,27.26,151.5,151.48,6.02033161]